[Event "Czech Open Rapid G1 2024"]
[Site "Pardubice"]
[Date "2024.07.17"]
[Round "2.17"]
[White "Rut, Vojtech"]
[Black "Dobrowolski, Piotr"]
[Result "0-1"]
[Annotator "TA"]
[ECO "A05"]
[WhiteElo "2028"]
[BlackElo "2412"]
[PlyCount "80"]
[EventDate "2024.07.16"]
[EventType "swiss"]
[EventCountry "CZE"]
[SourceTitle "playchess.com"]
[Source "ChessBase"]
[SourceQuality "1"]
[TimeControl "1200+10"]

{[%evp 9,80,10,19,7,20,10,29,15,29,15,37,0,4,0,0,0,0,0,0,-10,0,-22,0,-33,-50,-43,-49,-57,-76,-100,-92,-92,-87,-176,-125,-143,-120,-149,-143,-109,-61,-44,-43,-47,-38,-144,-122,-284,-293,-296,-300,-281,-290,-302,-302,-291,-291,-737,-239,-244,-254,-602,-555,-612,-612,-612,-612,-576,-571,-814,-806,-765,-754]} 1. Nf3 {[%emt 0:00:01]} Nf6 {[%emt 0:00:07]} 2. g3 {[%emt 0:00:13]} b5 {[%emt 0:00:03]} 3. a4 {[%emt 0:00:17]} b4 {[%emt 0:00:02]} 4. Bg2 {[%emt 0:00:05]} Bb7 {[%emt 0:00:02]} 5. O-O {[%emt 0:00:14]} a5 {[%emt 0:00:12]} 6. d3 {[%emt 0:01:25]} c5 {[%emt 0:01:53]} 7. e4 {[%emt 0:00:33]} d6 {[%emt 0:00:03]} 8. Bg5 {[%emt 0:00:28] White has an edge.} Nbd7 {[%emt 0:00:08]} 9. Re1 {[%emt 0:00:30]} h6 {[%emt 0:01:05]} 10. Bf4 {[%emt 0:00:50][%cal Of4d6]} e5 {[%emt 0:01:40]} 11. Bc1 {[%emt 0:00:18]} g6 {[%emt 0:00:24]} 12. Nbd2 {[%emt 0:00:22]} Bg7 {[%emt 0:00:02]} 13. Nc4 {[%emt 0:00:17]} Qc7 {[%emt 0:00:52]} 14. c3 {[%emt 0:00:49]} O-O {[%emt 0:00:22]} 15. Qb3 {[%emt 0:01:09]} Rfe8 {[%emt 0:01:48]} 16. Bd2 {[%emt 0:00:42]} d5 {[%emt 0:02:54]} 17. exd5 {[%emt 0:00:22]} Bxd5 {[%emt 0:00:02]} 18. cxb4 {[%emt 0:01:28]} cxb4 {[%emt 0:00:35] And now ...e4 would win.} 19. Rac1 {[%emt 0:00:12]} Nc5 {[%emt 0:03:34]} 20. Qc2 {[%emt 0:00:28]} e4 {[%emt 0:00:25] Black is more active.} 21. Bf4 {[%emt 0:01:04]} (21. Ne3 $17 exf3 22. Nxd5 Rxe1+ (22... Nxd5 23. Rxe8+ Rxe8 24. Qxc5 $17) 23. Bxe1 Nxd5 24. Bxf3 (24. Qxc5 $2 fxg2 25. Qxc7 Nxc7 $19) 24... Nxd3 25. Qxc7 (25. Bxd5 $2 Qxc2 26. Rxc2 Rd8 $19) 25... Nxc7 26. Rxc7) 21... Qa7 {[%emt 0:01:25]} (21... exd3 $19 {...Qxf4 would now be deadly.} 22. Qd1 Qa7 23. Rxe8+ Rxe8) 22. dxe4 $17 {[%emt 0:03:09]} Bxe4 {[%emt 0:00:02]} 23. Rxe4 {[%emt 0:00:20]} Ncxe4 {[%emt 0:00:15]} (23... Rxe4 24. Nd6 b3 (24... Rxf4 25. gxf4 Ne6 26. Ne5 $16) 25. Qxc5 Qxc5 26. Rxc5 Rxa4 27. Ne5 Ra1+ 28. Rc1 Rxc1+ 29. Bxc1 $16) 24. Nfe5 {[%emt 0:00:14] [#]} b3 $1 {[%emt 0:04:17]} 25. Qe2 $15 {[%emt 0:00:50]} g5 $1 {[%emt 0:00:01]} 26. Be3 {[%emt 0:02:31] This pair of bishops is nice.} Qa6 {[%emt 0:00:01] White must now prevent ...Rxe5.} 27. Qf3 {[%emt 0:00:11]} ({Better is} 27. Qd3 $15) 27... Rac8 {[%emt 0:00:34]} 28. Qf5 $2 {[%emt 0:01:02] This costs White the game.} (28. Qd1 $17 {was called for.}) 28... Nd6 $19 {[%emt 0:00:15]} 29. Nxd6 {[%emt 0:00:17]} Rxc1+ {[%emt 0:00:03]} 30. Bxc1 {[%emt 0:00:05]} Qxd6 {[%emt 0:00:01]} 31. Nd3 {[%emt 0:00:17]} Rd8 {[%emt 0:00:33]} 32. Bf1 {[%emt 0:00:08]} Qd5 {[%emt 0:00:11]} 33. Ne5 $2 {[%emt 0:00:51]} (33. Qxd5 Rxd5 (33... Nxd5 $2 34. Nc5 $19) 34. Be3) 33... Qe4 $2 {[%emt 0:00:11]} (33... Ne4 34. Bc4 Qxe5 35. Qxf7+ Kh8) 34. Qxe4 {[%emt 0:00:19]} Nxe4 {[%emt 0:00:02]} 35. Nc6 {[%emt 0:00:01]} (35. Nc4) 35... Rd1 {[%emt 0:00:01] Black is clearly winning.} 36. Be3 {[%emt 0:00:15]} Nd2 {[%emt 0:00:10]} 37. Bxd2 {[%emt 0:00:16]} Rxd2 {[%emt 0:00:02]} 38. Nxa5 {[%emt 0:00:05]} Rxb2 {[%emt 0:00:06]} 39. Bc4 {[%emt 0:00:10]} Rb1+ {[%emt 0:00:06]} 40. Kg2 {[%emt 0:00:03]} b2 {[%emt 0:00:02] Weighted Error Value: White=0.52/Black=0.25 (precise) .  Loses game:     	White=1     	---        Mistake:       	White=4     	Black=3      Inaccurate:     	White=2     	---        OK:         	White=13    	Black=12     Best:        	White=3     	Black=2      Strong:       	---       	Black=1} 0-1

[Event "Czech Open Rapid G1 2024"]
[Site "Pardubice"]
[Date "2024.07.17"]
[Round "2.18"]
[White "Kuegel, Tobias"]
[Black "Dolensky, Milan"]
[Result "1-0"]
[Annotator "TA"]
[ECO "B54"]
[WhiteElo "2416"]
[BlackElo "1983"]
[PlyCount "41"]
[EventDate "2024.07.16"]
[EventType "swiss"]
[EventCountry "CZE"]
[SourceTitle "playchess.com"]
[Source "ChessBase"]
[SourceQuality "1"]
[TimeControl "1200+10"]

{[%evp 16,41,49,57,60,50,54,49,77,75,84,73,82,84,118,103,138,133,386,381,433,427,630,575,633,635,685,691]} 1. e4 {[%emt 0:00:01]} c5 {[%emt 0:00:00]} 2. Nf3 {[%emt 0:00:15]} e6 {[%emt 0:00:03]} 3. c4 {[%emt 0:00:26]} Nc6 {[%emt 0:00:07]} 4. d4 {[%emt 0:00:03]} cxd4 {[%emt 0:00:06]} 5. Nxd4 {[%emt 0:00:02]} d6 {[%emt 0:01:42]} 6. Nc3 {[%emt 0:00:12]} Nf6 {[%emt 0:00:04]} 7. Be2 {[%emt 0:00:09]} Be7 {[%emt 0:00:01]} 8. O-O {[%emt 0:00:07]} O-O {[%emt 0:00:03]} 9. Be3 {[%emt 0:00:09]} Re8 {[%emt 0:00:24]} 10. Rc1 {[%emt 0:00:50]} Nxd4 {[%emt 0:00:42]} 11. Qxd4 {[%emt 0:00:20]} e5 {[%emt 0:01:06] White is slightly better.} 12. Qd2 {[%emt 0:01:07]} b6 {[%emt 0:02:45]} 13. Rfd1 {[%emt 0:00:25] White is more active.} Bb7 {[%emt 0:01:09]} 14. f3 {[%emt 0:00:05]} a6 {[%emt 0:01:39]} 15. b4 {[%emt 0:02:27][%cal Bb2b4,Bb4c5,Bc5c6][%mdl 32]} Rb8 {[%emt 0:00:12]} 16. Bf1 {[%emt 0:00:26]} d5 $2 {[%emt 0:00:32][%mdl 8192] [#]} (16... Bc6 $16 17. b5 axb5) 17. Nxd5 $18 {[%emt 0:00:19]} (17. cxd5 Bxb4 18. Qf2 Nd7 $16) 17... Nxd5 {[%emt 0:01:34]} 18. exd5 {[%emt 0:02:29] White is clearly winning.} ({Weaker is} 18. cxd5 Qd6 19. a4 Rec8 $18) 18... f5 {[%emt 0:03:11]} (18... Bf8 $142 19. c5 bxc5 20. bxc5 Rc8) 19. c5 {[%emt 0:00:17]} bxc5 {[%emt 0:03:18]} 20. bxc5 {[%emt 0:00:07]} Bf6 {[%emt 0:00:16]} 21. c6 {[%emt 0:00:13] Black got outplayed after the opening.   Weighted Error Value: White=0.03 (flawless) /Black=0.54.  Loses game:     	---       	Black=1      Mistake:       	---       	Black=1      Inaccurate:     	---       	Black=3      OK:         	White=5     	Black=1      Best:        	White=1     	---} 1-0

[Event "Czech Open Rapid G1 2024"]
[Site "Pardubice"]
[Date "2024.07.17"]
[Round "2.19"]
[White "Dolensky, Filip"]
[Black "Kulon, Klaudia"]
[Result "0-1"]
[Annotator "TA"]
[ECO "C55"]
[WhiteElo "2085"]
[BlackElo "2380"]
[PlyCount "84"]
[EventDate "2024.07.16"]
[EventType "swiss"]
[EventCountry "CZE"]
[SourceTitle "playchess.com"]
[Source "ChessBase"]
[SourceQuality "1"]
[TimeControl "1200+10"]

{[%evp 22,84,0,10,9,10,12,20,1,-13,-10,-29,-34,-69,-66,-64,-15,-22,-25,-32,-22,-47,-53,-45,-39,-45,-31,-101,-80,-86,-40,-39,-37,-27,-22,-106,-111,-111,-113,-253,-245,-251,-235,-255,-252,-262,-265,-266,-272,-237,-165,-168,-151,-187,-166,-273,-271,-813,-807,-1035,-1000,-1049,-1033,-29979,-29979]} 1. e4 {[%emt 0:00:03]} e5 {[%emt 0:00:01]} 2. Nf3 {[%emt 0:00:04]} Nc6 {[%emt 0:00:02]} 3. Bc4 {[%emt 0:00:01]} Nf6 {[%emt 0:00:01]} 4. d3 {[%emt 0:00:01]} h6 {[%emt 0:00:02]} 5. c3 {[%emt 0:00:05]} d6 {[%emt 0:00:01]} 6. Nbd2 {[%emt 0:00:11]} g6 {[%emt 0:00:03]} 7. O-O {[%emt 0:00:25]} Bg7 {[%emt 0:00:01]} 8. Re1 {[%emt 0:00:14]} O-O {[%emt 0:00:04]} 9. Nf1 {[%emt 0:00:49]} Na5 {[%emt 0:00:05]} 10. Bb5 {[%emt 0:00:14]} a6 {[%emt 0:00:02]} 11. Ba4 {[%emt 0:00:01]} b5 {[%emt 0:00:01]} 12. Bc2 {[%emt 0:00:01]} c5 {[%emt 0:00:01]} 13. Ng3 {[%emt 0:00:18]} Nc6 {[%emt 0:00:14]} 14. h3 {[%emt 0:00:02]} d5 {[%emt 0:00:16][%cal Bd6d5,Bd5d4][%mdl 32] The position is equal.} 15. Qe2 {[%emt 0:00:48]} d4 {[%emt 0:00:12]} 16. Bd2 {[%emt 0:01:44]} Be6 {[%emt 0:00:15]} 17. a4 {[%emt 0:00:11]} Qd6 {[%emt 0:00:35]} 18. Rec1 {[%emt 0:01:40]} Rfb8 {[%emt 0:00:22]} (18... b4 $15 19. c4 a5) 19. axb5 {[%emt 0:01:13]} axb5 {[%emt 0:00:03]} 20. cxd4 {[%emt 0:04:09] Rxa8 would now be deadly.} cxd4 {[%emt 0:00:28]} 21. Qe1 {[%emt 0:00:29]} Nd7 {[%emt 0:00:37]} 22. Rxa8 {[%emt 0:00:17]} Rxa8 {[%emt 0:00:03]} 23. Ra1 {[%emt 0:00:03]} Rc8 {[%emt 0:00:13]} 24. Ra6 {[%emt 0:02:06]} (24. Ne2 $15) 24... Nc5 {[%emt 0:00:47]} 25. Rb6 {[%emt 0:01:08][%cal Ob2b4] [#]} Rb8 {[%emt 0:00:38]} (25... Qd7 $1 $17 26. Rxb5 Nd8) 26. Rxb8+ $15 {[%emt 0:00:02]} Qxb8 {[%emt 0:00:01]} 27. Qc1 {[%emt 0:00:58]} Kh7 {[%emt 0:00:13]} 28. Qa1 {[%emt 0:02:31]} (28. b4 $11 Nd7 29. Qb1) 28... b4 $36 {[%emt 0:00:37][%mdl 2048] Black is really pushing.} 29. Ne1 {[%emt 0:00:40]} Qb5 {[%emt 0:01:10] Black is more active.} 30. Qd1 {[%emt 0:02:22] Loses the game.} (30. Bd1 $17 {was necessary.}) 30... b3 $19 {[%emt 0:00:17]} 31. Bb1 {[%emt 0:00:01]} Nb4 {[%emt 0:00:17]} 32. Bxb4 {[%emt 0:00:11]} Qxb4 {[%emt 0:00:01]} 33. Qc1 {[%emt 0:01:43]} h5 {[%emt 0:00:27] And now ...Bh6 would win.} 34. Ne2 {[%emt 0:00:29]} Bh6 {[%emt 0:00:03]} 35. f4 {[%emt 0:00:01]} Qb5 {[%emt 0:02:11]} 36. Qd2 {[%emt 0:00:34]} Na4 {[%emt 0:00:24]} 37. Nf3 {[%emt 0:00:09]} f6 {[%emt 0:00:02]} 38. Kf2 {[%emt 0:00:12]} (38. Kh2 {is a better defense.}) 38... Qc5 {[%emt 0:00:11]} 39. Kg1 $2 {[%emt 0:00:12] [#]} (39. Ke1) 39... Nc3 $1 {[%emt 0:00:11][%mdl 512] ...Nxe2+ is the strong threat.} 40. Qe1 {[%emt 0:00:11]} (40. Kf1 Nxb1) 40... Nxe2+ {[%emt 0:00:24]} 41. Qxe2 {[%emt 0:00:06]} Bxf4 {[%emt 0:00:02]} 42. Ne1 {[%emt 0:00:10]} Qc1 {[%emt 0:00:04] Weighted Error Value: White=0.64/Black=0.10 (very precise) .  Mistake:       	White=5     	Black=2      Inaccurate:     	White=1     	Black=1      OK:         	White=8     	Black=7      Best:        	White=5     	Black=1      Brilliant:      	---       	Black=1} 0-1

[Event "Czech Open Rapid G1 2024"]
[Site "Pardubice"]
[Date "2024.07.17"]
[Round "2.20"]
[White "Jares, Michal"]
[Black "Shilon Rahav, Eliran"]
[Result "1/2-1/2"]
[Annotator "RC"]
[ECO "A37"]
[WhiteElo "2382"]
[BlackElo "2055"]
[PlyCount "148"]
[EventDate "2024.07.16"]
[EventType "swiss"]
[EventCountry "CZE"]
[SourceTitle "playchess.com"]
[Source "ChessBase"]
[SourceQuality "1"]
[TimeControl "1200+10"]

1. Nf3 {[%emt 0:00:02]} c5 {[%emt 0:00:01]} 2. g3 {[%emt 0:00:05]} Nc6 {[%emt 0:00:05]} 3. c4 {[%emt 0:00:05]} g6 {[%emt 0:00:03]} 4. Bg2 {[%emt 0:00:04]} Bg7 {[%emt 0:00:01]} 5. O-O {[%emt 0:00:07]} e5 {[%emt 0:00:02]} 6. Nc3 {[%emt 0:00:02]} Nge7 {[%emt 0:00:01]} 7. a3 {[%emt 0:00:13]} O-O {[%emt 0:00:22]} 8. Rb1 {[%emt 0:00:45]} a5 {[%emt 0:00:06]} 9. Ne1 {[%emt 0:01:23]} d6 {[%emt 0:00:27]} 10. Nc2 {[%emt 0:00:17]} Be6 {[%emt 0:00:53]} 11. Ne3 {[%emt 0:00:03]} f5 {[%emt 0:00:09]} 12. d3 {[%emt 0:00:38]} Rb8 {[%emt 0:00:46]} 13. Ned5 {[%emt 0:00:20]} h6 {[%emt 0:00:54]} 14. Bd2 {[%emt 0:00:15]} Kh7 {[%emt 0:00:14]} 15. e3 {[%emt 0:02:21]} Bxd5 {[%emt 0:02:32]} 16. cxd5 {[%emt 0:01:48]} Na7 {[%emt 0:00:02]} 17. b4 {[%emt 0:00:05]} b5 {[%emt 0:00:22]} 18. bxa5 {[%emt 0:00:25]} Qxa5 {[%emt 0:01:23]} 19. Nxb5 {[%emt 0:00:13]} Qa6 {[%emt 0:00:00]} 20. Nxa7 {[%emt 0:00:45]} Qxa7 {[%emt 0:00:02]} 21. Rxb8 {[%emt 0:00:09]} Rxb8 {[%emt 0:00:01]} 22. a4 {[%emt 0:00:01]} Qb7 {[%emt 0:02:31]} 23. a5 {[%emt 0:00:34]} Qb3 {[%emt 0:01:27]} 24. Qe2 {[%emt 0:06:05]} Qa2 {[%emt 0:01:40]} 25. Rd1 {[%emt 0:00:15]} Rb2 {[%emt 0:03:32]} 26. Qe1 {[%emt 0:00:01]} e4 {[%emt 0:01:06]} 27. dxe4 {[%emt 0:01:01]} c4 {[%emt 0:00:39]} 28. Bf1 {[%emt 0:03:17]} Rc2 {[%emt 0:00:52]} 29. Bb4 {[%emt 0:02:08]} fxe4 {[%emt 0:00:11]} 30. Rc1 {[%emt 0:00:46]} Nxd5 {[%emt 0:00:24]} 31. Rxc2 {[%emt 0:00:01]} Qxc2 {[%emt 0:00:02]} 32. Bxd6 {[%emt 0:00:40]} c3 {[%emt 0:02:29]} 33. Ba3 {[%emt 0:00:03]} Qa4 {[%emt 0:00:36]} 34. Qc1 {[%emt 0:00:15]} Qxa5 {[%emt 0:00:02]} 35. Bg2 {[%emt 0:00:06]} c2 {[%emt 0:00:25]} 36. Bxe4 {[%emt 0:00:19]} Nc3 {[%emt 0:00:00]} 37. Bxg6+ {[%emt 0:00:20]} Kxg6 {[%emt 0:00:09]} 38. Qxc2+ {[%emt 0:00:01]} Qf5 {[%emt 0:00:40]} 39. Qxf5+ {[%emt 0:00:07]} Kxf5 {[%emt 0:00:01]} 40. Kg2 {[%emt 0:00:04]} Ne4 {[%emt 0:00:43]} 41. f3 {[%emt 0:00:06]} Ng5 {[%emt 0:00:20]} 42. h4 {[%emt 0:00:06]} Nf7 {[%emt 0:00:14]} 43. e4+ {[%emt 0:00:01]} Kg6 {[%emt 0:00:05]} 44. f4 {[%emt 0:00:25]} h5 {[%emt 0:00:39]} 45. Kf3 {[%emt 0:00:27]} Bc3 {[%emt 0:00:00]} 46. g4 {[%emt 0:00:10]} hxg4+ {[%emt 0:00:07]} 47. Kxg4 {[%emt 0:00:01]} Nh6+ {[%emt 0:00:04]} 48. Kf3 {[%emt 0:00:20]} Kf7 {[%emt 0:00:16]} 49. h5 {[%emt 0:00:00]} Bd2 50. Bb2 {[%emt 0:00:22]} Ng8 {[%emt 0:00:37]} 51. Ba1 {[%emt 0:00:07]} Nh6 {[%emt 0:00:23]} 52. f5 {[%emt 0:00:19]} Bc1 {[%emt 0:00:00]} 53. Be5 {[%emt 0:00:05]} Bg5 {[%emt 0:00:03]} 54. Bd4 {[%emt 0:00:15]} Ke7 {[%emt 0:00:15]} 55. Bg7 {[%emt 0:00:08]} Kf7 {[%emt 0:00:09]} 56. Bxh6 {[%emt 0:00:09]} Bxh6 {[%emt 0:00:00]} 57. e5 {[%emt 0:00:00]} Bc1 {[%emt 0:00:09]} 58. Ke4 {[%emt 0:00:10]} Bg5 {[%emt 0:00:18]} 59. Kd5 {[%emt 0:00:01]} Ke7 {[%emt 0:00:07]} 60. Ke4 {[%emt 0:00:08]} Kf7 {[%emt 0:00:08]} 61. Kf3 {[%emt 0:00:02]} Bc1 {[%emt 0:00:13]} 62. Ke4 {[%emt 0:00:41]} Bg5 {[%emt 0:00:05]} 63. Kd4 {[%emt 0:00:01]} Ke8 {[%emt 0:00:18]} 64. Kc5 {[%emt 0:00:15]} Kd7 {[%emt 0:00:12]} 65. Kd5 {[%emt 0:00:10]} Ke7 {[%emt 0:00:01]} 66. Kc6 {[%emt 0:00:01]} Bf4 {[%emt 0:00:05]} 67. e6 {[%emt 0:00:26]} Bg5 {[%emt 0:00:23]} 68. Kd5 {[%emt 0:00:01]} Kf6 {[%emt 0:00:08]} 69. Kd6 {[%emt 0:00:18]} Kxf5 {[%emt 0:00:02]} 70. h6 {[%emt 0:00:04]} Kg6 {[%emt 0:00:03]} 71. Kd7 {[%emt 0:00:14]} Kxh6 {[%emt 0:00:02]} 72. Ke8 {[%emt 0:00:02]} Bh4 {[%emt 0:00:02]} 73. Kf7 {[%emt 0:00:02]} Kh7 {[%emt 0:00:03]} 74. Kf8 {[%emt 0:00:03]} Kg6 {[%emt 0:00:02]} 1/2-1/2

[Event "Czech Open Rapid G1 2024"]
[Site "Pardubice"]
[Date "2024.07.17"]
[Round "2.21"]
[White "Novotny, Dominik"]
[Black "Seger, Ruediger"]
[Result "0-1"]
[Annotator "RC"]
[ECO "B12"]
[WhiteElo "1921"]
[BlackElo "2264"]
[PlyCount "54"]
[EventDate "2024.07.16"]
[EventType "swiss"]
[EventCountry "CZE"]
[SourceTitle "playchess.com"]
[Source "ChessBase"]
[SourceQuality "1"]
[TimeControl "1200+10"]

1. e4 {[%emt 0:00:02]} c6 {[%emt 0:00:01]} 2. d4 {[%emt 0:00:04]} d5 {[%emt 0:00:01]} 3. f3 {[%emt 0:00:02]} dxe4 {[%emt 0:00:04]} 4. fxe4 {[%emt 0:00:01]} e5 {[%emt 0:00:02]} 5. Nf3 {[%emt 0:00:02]} Bg4 {[%emt 0:00:13]} 6. Bc4 {[%emt 0:00:03]} Nd7 {[%emt 0:00:07]} 7. O-O {[%emt 0:00:11]} Ngf6 {[%emt 0:00:03]} 8. c3 {[%emt 0:00:37]} Bd6 {[%emt 0:01:52]} 9. Bg5 {[%emt 0:00:48]} O-O {[%emt 0:02:55]} 10. Nbd2 {[%emt 0:00:07]} Qc7 {[%emt 0:00:17]} 11. Qc2 {[%emt 0:00:51]} h6 {[%emt 0:01:54]} 12. Bh4 {[%emt 0:00:35]} Rae8 {[%emt 0:00:04]} 13. Rae1 {[%emt 0:00:23]} b5 {[%emt 0:00:57]} 14. Bb3 {[%emt 0:01:17]} c5 {[%emt 0:00:24]} 15. dxc5 {[%emt 0:02:40]} Bxc5+ {[%emt 0:00:10]} 16. Bf2 {[%emt 0:00:29]} Bxf2+ {[%emt 0:00:30]} 17. Rxf2 {[%emt 0:00:03]} Nc5 {[%emt 0:00:55]} 18. Nh4 {[%emt 0:01:37]} Rd8 {[%emt 0:01:18]} 19. h3 {[%emt 0:01:06]} Bc8 {[%emt 0:00:26]} 20. Ref1 {[%emt 0:01:43]} Rd6 {[%emt 0:00:42]} 21. Nf5 {[%emt 0:01:10]} Bxf5 {[%emt 0:00:28]} 22. Rxf5 {[%emt 0:00:15]} Rfd8 {[%emt 0:01:23]} 23. Nf3 {[%emt 0:01:03]} Nd3 {[%emt 0:01:06]} 24. Kh2 {[%emt 0:03:19]} g6 {[%emt 0:00:48]} 25. Rxe5 {[%emt 0:03:12]} Nxe5 {[%emt 0:00:36]} 26. Nxe5 {[%emt 0:00:02]} Rd2 {[%emt 0:00:56]} 27. Bxf7+ {[%emt 0:00:44]} Kg7 {[%emt 0:00:06]} 0-1

[Event "Czech Open Rapid G1 2024"]
[Site "Pardubice"]
[Date "2024.07.17"]
[Round "2.22"]
[White "Mica, Marek"]
[Black "Flasar, Jaroslav"]
[Result "1-0"]
[Annotator "RC"]
[ECO "E06"]
[WhiteElo "2375"]
[BlackElo "2012"]
[PlyCount "85"]
[EventDate "2024.07.16"]
[EventType "swiss"]
[EventCountry "CZE"]
[SourceTitle "playchess.com"]
[Source "ChessBase"]
[SourceQuality "1"]
[TimeControl "1200+10"]

1. Nf3 {[%emt 0:00:04]} d5 {[%emt 0:00:04]} 2. g3 {[%emt 0:00:03]} Nf6 {[%emt 0:00:02]} 3. Bg2 {[%emt 0:00:02]} e6 {[%emt 0:00:02]} 4. O-O {[%emt 0:00:16]} Be7 {[%emt 0:00:03]} 5. d4 {[%emt 0:00:05]} O-O {[%emt 0:00:08]} 6. c4 {[%emt 0:00:02]} b6 {[%emt 0:00:29]} 7. cxd5 {[%emt 0:00:20]} exd5 {[%emt 0:00:00]} 8. Bf4 {[%emt 0:00:23]} Bb7 {[%emt 0:00:00]} 9. Qc2 {[%emt 0:00:07]} c5 {[%emt 0:00:04]} 10. dxc5 {[%emt 0:00:28]} bxc5 {[%emt 0:00:07]} 11. Rd1 {[%emt 0:00:13]} Nbd7 {[%emt 0:00:09]} 12. Ne5 {[%emt 0:00:46]} Nb6 {[%emt 0:01:34]} 13. Nc3 {[%emt 0:00:24]} Qc8 {[%emt 0:00:14]} 14. e4 {[%emt 0:01:46]} d4 {[%emt 0:01:06]} 15. Ne2 {[%emt 0:00:19]} Qe6 {[%emt 0:00:39]} 16. h4 {[%emt 0:01:25]} Nh5 {[%emt 0:01:07]} 17. Nd3 {[%emt 0:03:20]} c4 {[%emt 0:00:59]} 18. Nxd4 {[%emt 0:00:02]} cxd3 {[%emt 0:00:02]} 19. Rxd3 {[%emt 0:00:01]} Qc4 {[%emt 0:01:32]} 20. Qxc4 {[%emt 0:00:51]} Nxc4 {[%emt 0:00:02]} 21. Rc1 {[%emt 0:02:26]} Nxf4 {[%emt 0:01:23]} 22. gxf4 {[%emt 0:00:05]} Rfc8 {[%emt 0:00:19]} 23. Rb3 {[%emt 0:01:27]} Nb6 {[%emt 0:00:13]} 24. Rxc8+ {[%emt 0:00:33]} Rxc8 {[%emt 0:00:08]} 25. a4 {[%emt 0:00:01]} Ba6 {[%emt 0:01:45]} 26. a5 {[%emt 0:00:55]} Nd7 {[%emt 0:01:36]} 27. Bh3 {[%emt 0:00:55]} Rc1+ {[%emt 0:00:06]} 28. Kh2 {[%emt 0:00:21]} Nf8 {[%emt 0:00:11]} 29. e5 {[%emt 0:01:30]} g6 {[%emt 0:02:04]} 30. Rb8 {[%emt 0:01:36]} Rc4 {[%emt 0:02:08]} 31. Ne6 {[%emt 0:02:31]} Rc8 {[%emt 0:01:51]} 32. Rxc8 {[%emt 0:00:01]} Bxc8 {[%emt 0:00:02]} 33. Nc7 {[%emt 0:00:01]} Bxh3 34. Kxh3 {[%emt 0:00:01]} Ne6 {[%emt 0:00:25]} 35. Nd5 {[%emt 0:00:01]} Bc5 {[%emt 0:00:02]} 36. Kg3 {[%emt 0:00:32]} Ng7 {[%emt 0:00:21]} 37. b4 {[%emt 0:00:06]} Nf5+ {[%emt 0:00:01]} 38. Kf3 {[%emt 0:00:17]} Ne7 {[%emt 0:00:45]} 39. Nf6+ {[%emt 0:00:03]} Kg7 {[%emt 0:00:10]} 40. bxc5 {[%emt 0:00:03]} Nc6 {[%emt 0:00:02]} 41. Ke4 {[%emt 0:00:06]} Nxa5 {[%emt 0:00:01]} 42. Kd5 {[%emt 0:00:02]} Nb7 {[%emt 0:00:06]} 43. c6 {[%emt 0:00:04]} 1-0

[Event "Czech Open Rapid G1 2024"]
[Site "Pardubice"]
[Date "2024.07.17"]
[Round "2.23"]
[White "Moeller, Tom"]
[Black "Krak, Tomas"]
[Result "0-1"]
[Annotator "RC"]
[ECO "A45"]
[WhiteElo "1842"]
[BlackElo "2229"]
[PlyCount "70"]
[EventDate "2024.07.16"]
[EventType "swiss"]
[EventCountry "CZE"]
[SourceTitle "playchess.com"]
[Source "ChessBase"]
[SourceQuality "1"]
[TimeControl "1200+10"]

1. d4 {[%emt 0:00:04]} Nf6 {[%emt 0:00:14]} 2. Nc3 {[%emt 0:00:00]} e6 {[%emt 0:00:12]} 3. Bf4 {[%emt 0:00:03]} Bb4 {[%emt 0:00:20]} 4. Qd3 {[%emt 0:00:02]} Nd5 {[%emt 0:02:27]} 5. Bd2 {[%emt 0:00:04]} Nxc3 {[%emt 0:00:03]} 6. bxc3 {[%emt 0:00:06]} Be7 {[%emt 0:00:09]} 7. e4 {[%emt 0:00:50]} d6 {[%emt 0:00:31]} 8. Ne2 {[%emt 0:00:36]} b6 {[%emt 0:01:28]} 9. c4 {[%emt 0:00:38]} Nd7 {[%emt 0:00:24]} 10. Nc3 {[%emt 0:01:07]} O-O {[%emt 0:00:28]} 11. Be2 {[%emt 0:00:02]} Bb7 {[%emt 0:00:12]} 12. f4 {[%emt 0:00:30]} e5 {[%emt 0:00:11]} 13. fxe5 dxe5 {[%emt 0:00:02]} 14. d5 {[%emt 0:00:42]} Bh4+ {[%emt 0:00:42]} 15. g3 {[%emt 0:00:52]} Bg5 {[%emt 0:00:02]} 16. h4 {[%emt 0:01:16]} Nc5 {[%emt 0:01:04]} 17. Qf3 {[%emt 0:00:02]} Bxd2+ {[%emt 0:00:09]} 18. Kxd2 {[%emt 0:00:02]} Qe7 {[%emt 0:00:28]} 19. Raf1 {[%emt 0:01:25]} Rad8 {[%emt 0:00:03]} 20. Nd1 {[%emt 0:00:09]} Bc8 {[%emt 0:01:04]} 21. Ne3 {[%emt 0:00:32]} Nb7 {[%emt 0:00:35]} 22. g4 {[%emt 0:00:16]} Qb4+ {[%emt 0:00:15]} 23. c3 {[%emt 0:00:28]} Qa4 {[%emt 0:00:45]} 24. h5 {[%emt 0:00:30]} f6 {[%emt 0:00:49]} 25. h6 {[%emt 0:01:03]} g6 {[%emt 0:00:09]} 26. g5 {[%emt 0:00:29]} f5 {[%emt 0:02:41]} 27. exf5 {[%emt 0:02:56]} Qxa2+ {[%emt 0:00:58]} 28. Nc2 {[%emt 0:02:19]} Bxf5 {[%emt 0:00:13]} 29. Bd3 {[%emt 0:00:02]} Nc5 {[%emt 0:02:08]} 30. Bxf5 {[%emt 0:02:22]} Nb3+ {[%emt 0:00:51]} 31. Kd3 {[%emt 0:00:25]} gxf5 {[%emt 0:00:11]} 32. Qg2 {[%emt 0:00:29]} Nc5+ {[%emt 0:00:25]} 33. Kd2 {[%emt 0:01:37]} Qxc4 {[%emt 0:00:16]} 34. g6 {[%emt 0:00:34]} Rxd5+ {[%emt 0:00:36]} 35. Nd4 {[%emt 0:01:00]} Qa2+ {[%emt 0:00:04]} 0-1